[Event "Caplin Hastings Masters 2023-24"]
[Site "Hastings"]
[Date "2023.12.28"]
[Round "1.1"]
[White "Sulskis, Sarunas"]
[Black "Pert, Max"]
[Result "1-0"]
[ECO "D44"]
[WhiteElo "2490"]
[BlackElo "1950"]
[Annotator "ChessBase"]
[PlyCount "41"]
[EventDate "2023.12.18"]
[EventType "swiss"]
[EventCountry "ENG"]
[SourceTitle "playchess.com"]
[Source "ChessBase"]
[SourceQuality "1"]
[TimeControl "40/6000+30:3000+30"]

1. d4 {[%emt 0:00:08]} d5 {[%emt 0:00:17]} 2. c4 {[%emt 0:00:23]} e6 {[%emt 0:00:27]} 3. Nf3 {[%emt 0:00:15]} Nf6 {[%emt 0:00:53]} 4. Bg5 {[%emt 0:04:13]} dxc4 {[%emt 0:06:18]} 5. Nc3 {[%emt 0:01:21]} c6 {[%emt 0:04:06]} 6. a4 {[%emt 0:04:30]} Bb4 {[%emt 0:01:32]} 7. e4 {[%emt 0:03:11]} b5 {[%emt 0:06:48]} 8. e5 {[%emt 0:02:13]} h6 {[%emt 0:01:40]} 9. exf6 {[%emt 0:01:47]} hxg5 {[%emt 0:00:21]} 10. fxg7 {[%emt 0:00:06]} Rg8 {[%emt 0:00:58]} 11. g3 {[%emt 0:00:18]} Bb7 {[%emt 0:05:34]} 12. Bg2 {[%emt 0:01:17]} Nd7 {[%emt 0:08:39]} 13. h4 {[%emt 0:13:27]} gxh4 {[%emt 0:04:10]} 14. Rxh4 {[%emt 0:01:44]} Bxc3+ {[%emt 0:14:34]} 15. bxc3 {[%emt 0:00:09]} Qa5 {[%emt 0:00:43]} 16. axb5 {[%emt 0:02:36]} Qxb5 {[%emt 0:01:17]} 17. Rb1 {[%emt 0:06:58]} Qa6 {[%emt 0:01:08]} 18. Ne5 {[%emt 0:02:13]} Nxe5 {[%emt 0:03:21]} 19. dxe5 {[%emt 0:00:54]} Rd8 {[%emt 0:03:42]} 20. Rh8 {[%emt 0:12:04]} Rxd1+ {[%emt 0:03:26]} 21. Kxd1 {[%emt 0:02:48]} 1-0

[Event "Caplin Hastings Masters 2023-24"]
[Site "Hastings"]
[Date "2023.12.28"]
[Round "1.2"]
[White "Lagarde, Maxime"]
[Black "Binks, Michael"]
[Result "1-0"]
[ECO "B10"]
[WhiteElo "2640"]
[BlackElo "2035"]
[Annotator "ChessBase"]
[PlyCount "59"]
[EventDate "2023.12.18"]
[EventType "swiss"]
[EventCountry "ENG"]
[SourceTitle "playchess.com"]
[Source "ChessBase"]
[SourceQuality "1"]
[TimeControl "40/6000+30:3000+30"]

1. e4 {[%emt 0:00:04]} c6 {[%emt 0:00:21]} 2. Nf3 {[%emt 0:00:50]} d5 {[%emt 0:00:26]} 3. e5 {[%emt 0:00:35]} Bg4 {[%emt 0:00:52]} 4. d4 {[%emt 0:03:58]} e6 {[%emt 0:01:30]} 5. c3 {[%emt 0:00:51]} c5 {[%emt 0:05:45]} 6. dxc5 {[%emt 0:01:01]} Nc6 {[%emt 0:00:21]} 7. Be3 {[%emt 0:00:18]} Bxf3 {[%emt 0:05:34]} 8. Qxf3 {[%emt 0:00:28]} Nxe5 {[%emt 0:00:29]} 9. Bb5+ {[%emt 0:00:47]} Nc6 {[%emt 0:00:26]} 10. c4 {[%emt 0:03:41]} Qf6 {[%emt 0:08:42]} 11. cxd5 {[%emt 0:00:56]} Qxf3 {[%emt 0:00:20]} 12. gxf3 {[%emt 0:00:31]} exd5 {[%emt 0:00:14]} 13. Nc3 {[%emt 0:04:09]} O-O-O {[%emt 0:00:45]} 14. O-O-O {[%emt 0:00:22]} Nge7 {[%emt 0:01:02]} 15. Bxc6 {[%emt 0:08:18]} bxc6 {[%emt 0:01:33]} 16. Ne2 {[%emt 0:00:42]} Nf5 {[%emt 0:01:29]} 17. b4 {[%emt 0:00:11]} Be7 {[%emt 0:10:35]} 18. Nd4 {[%emt 0:00:09]} Nxe3 {[%emt 0:00:34]} 19. fxe3 {[%emt 0:00:28]} Kc7 {[%emt 0:00:37]} 20. Kc2 {[%emt 0:09:08]} Bf6 {[%emt 0:03:11]} 21. Nf5 {[%emt 0:06:06]} a5 {[%emt 0:07:43]} 22. b5 {[%emt 0:03:58]} cxb5 {[%emt 0:02:15]} 23. Nd6 {[%emt 0:00:07]} Rd7 {[%emt 0:05:27]} 24. Nxb5+ {[%emt 0:03:47]} Kc6 {[%emt 0:00:13]} 25. a4 {[%emt 0:01:13]} Kxc5 {[%emt 0:02:57]} 26. Kd3 {[%emt 0:00:48]} Re8 {[%emt 0:01:41]} 27. Rb1 {[%emt 0:01:30]} Ree7 {[%emt 0:03:35]} 28. Rhc1+ {[%emt 0:01:12]} Kb6 {[%emt 0:00:07]} 29. Nd6+ {[%emt 0:00:50]} Ka6 {[%emt 0:00:43]} 30. Rc6+ {[%emt 0:00:20]} 1-0

[Event "Caplin Hastings Masters 2023-24"]
[Site "Hastings"]
[Date "2023.12.28"]
[Round "1.3"]
[White "Liu, Tianyi"]
[Black "Gupta, Abhijeet"]
[Result "0-1"]
[ECO "B94"]
[WhiteElo "2022"]
[BlackElo "2596"]
[Annotator "ChessBase"]
[PlyCount "140"]
[EventDate "2023.12.18"]
[EventType "swiss"]
[EventCountry "ENG"]
[SourceTitle "playchess.com"]
[Source "ChessBase"]
[SourceQuality "1"]
[TimeControl "40/6000+30:3000+30"]

1. e4 {[%emt 0:00:07]} c5 {[%emt 0:00:06]} 2. Nf3 {[%emt 0:00:13]} d6 {[%emt 0:00:06]} 3. d4 {[%emt 0:00:09]} cxd4 {[%emt 0:00:04]} 4. Nxd4 {[%emt 0:00:05]} Nf6 {[%emt 0:00:04]} 5. Nc3 {[%emt 0:00:14]} a6 {[%emt 0:00:06]} 6. Bg5 {[%emt 0:00:31]} Nbd7 {[%emt 0:00:20]} 7. Qe2 {[%emt 0:01:22]} h6 {[%emt 0:01:46]} 8. Bh4 {[%emt 0:01:16]} b5 {[%emt 0:00:33]} 9. f4 {[%emt 0:01:19]} g5 {[%emt 0:00:44]} 10. fxg5 {[%emt 0:01:25]} hxg5 {[%emt 0:00:04]} 11. Bxg5 {[%emt 0:00:21]} Bb7 {[%emt 0:00:39]} 12. O-O-O {[%emt 0:01:28]} e6 {[%emt 0:00:06]} 13. h4 {[%emt 0:02:45]} Rc8 {[%emt 0:01:20]} 14. Rh3 {[%emt 0:01:12]} Be7 {[%emt 0:00:31]} 15. a3 {[%emt 0:01:55]} Ne5 {[%emt 0:06:03]} 16. Kb1 {[%emt 0:12:35]} Qb6 {[%emt 0:06:29]} 17. Qe1 {[%emt 0:32:32]} Ba8 {[%emt 0:07:38]} 18. Nb3 {[%emt 0:09:13]} Nfg4 {[%emt 0:05:13]} 19. Qd2 {[%emt 0:10:59]} f6 {[%emt 0:16:31]} 20. Be3 {[%emt 0:03:21]} Nxe3 {[%emt 0:01:38]} 21. Rxe3 {[%emt 0:01:00]} Rxh4 {[%emt 0:03:57]} 22. Rh3 {[%emt 0:02:39]} Rxh3 {[%emt 0:18:26]} 23. gxh3 {[%emt 0:00:06]} Kd7 {[%emt 0:00:22]} 24. Nd4 {[%emt 0:07:26]} Rh8 {[%emt 0:00:06]} 25. Qe1 {[%emt 0:02:03]} Rb8 {[%emt 0:05:39]} 26. h4 {[%emt 0:04:12]} b4 {[%emt 0:02:35]} 27. Na4 {[%emt 0:00:56]} Qb7 {[%emt 0:00:03]} 28. Bh3 {[%emt 0:05:48]} bxa3 {[%emt 0:01:25]} 29. Nxe6 {[%emt 0:01:14]} Ke8 {[%emt 0:00:03]} 30. Qg1 {[%emt 0:01:42]} Bf8 {[%emt 0:00:06]} 31. Qg8 {[%emt 0:01:05]} Qf7 {[%emt 0:00:14]} 32. Qxf8+ {[%emt 0:00:55]} Qxf8 {[%emt 0:00:05]} 33. Nxf8 {[%emt 0:00:02]} Bc6 {[%emt 0:11:19]} 34. Nd7 {[%emt 0:03:07]} Nxd7 {[%emt 0:01:30]} 35. Bxd7+ {[%emt 0:00:10]} Kxd7 {[%emt 0:00:38]} 36. Rd4 {[%emt 0:02:29]} Ke6 {[%emt 0:00:05]} 37. Ka2 {[%emt 0:00:31]} Ke5 {[%emt 0:07:25]} 38. c3 {[%emt 0:00:25]} Bxe4 {[%emt 0:00:05]} 39. Kxa3 {[%emt 0:00:29]} f5 {[%emt 0:00:04]} 40. b4 {[%emt 0:00:28]} f4 {[%emt 0:00:54]} 41. Nb2 {[%emt 0:05:52]} d5 {[%emt 0:00:04]} 42. Rd2 {[%emt 0:03:07]} f3 {[%emt 0:00:32]} 43. c4 {[%emt 0:08:25]} d4 {[%emt 0:03:48]} 44. c5 {[%emt 0:00:46]} Kd5 {[%emt 0:01:50]} 45. h5 {[%emt 0:07:32]} Rg8 {[%emt 0:03:28]} 46. Nd1 {[%emt 0:02:45]} Kc4 {[%emt 0:01:31]} 47. Nf2 {[%emt 0:01:29]} Bf5 {[%emt 0:00:06]} 48. Nd1 {[%emt 0:02:07]} Rg2 {[%emt 0:02:28]} 49. Rf2 {[%emt 0:01:07]} Be4 {[%emt 0:01:46]} 50. h6 {[%emt 0:01:53]} Kb5 {[%emt 0:07:28]} 51. h7 {[%emt 0:05:21]} Bxh7 {[%emt 0:00:04]} 52. Rxf3 {[%emt 0:00:15]} Be4 {[%emt 0:00:18]} 53. Rf6 {[%emt 0:05:51]} Rg3+ {[%emt 0:06:39]} 54. Kb2 {[%emt 0:01:38]} Kxb4 {[%emt 0:00:33]} 55. c6 {[%emt 0:04:29]} Rg2+ {[%emt 0:00:33]} 56. Rf2 {[%emt 0:01:49]} Bxc6 {[%emt 0:00:15]} 57. Rxg2 {[%emt 0:00:18]} Bxg2 {[%emt 0:00:04]} 58. Nf2 {[%emt 0:00:14]} Kc4 {[%emt 0:00:14]} 59. Ng4 {[%emt 0:00:26]} Kd5 {[%emt 0:00:49]} 60. Nf2 {[%emt 0:00:56]} Be4 {[%emt 0:00:35]} 61. Ng4 {[%emt 0:00:27]} Bf5 {[%emt 0:00:33]} 62. Nf2 {[%emt 0:01:14]} Kc4 {[%emt 0:00:08]} 63. Nh1 {[%emt 0:01:46]} Kd3 {[%emt 0:01:17]} 64. Ng3 {[%emt 0:00:34]} Bg6 {[%emt 0:00:05]} 65. Kc1 {[%emt 0:01:06]} a5 {[%emt 0:00:07]} 66. Nf1 {[%emt 0:00:12]} a4 {[%emt 0:00:20]} 67. Ng3 {[%emt 0:01:54]} a3 {[%emt 0:00:59]} 68. Ne2 {[%emt 0:00:36]} Ke3 {[%emt 0:01:50]} 69. Ng3 {[%emt 0:00:29]} a2 {[%emt 0:00:31]} 70. Kb2 {[%emt 0:00:05]} Kf2 {[%emt 0:00:06]} 0-1

[Event "Caplin Hastings Masters 2023-24"]
[Site "Hastings"]
[Date "2023.12.28"]
[Round "1.4"]
[White "Zhang, Pengxiang"]
[Black "White, Stuart A"]
[Result "1-0"]
[ECO "B95"]
[WhiteElo "2558"]
[BlackElo "2014"]
[Annotator "ChessBase"]
[PlyCount "91"]
[EventDate "2023.12.18"]
[EventType "swiss"]
[EventCountry "ENG"]
[SourceTitle "playchess.com"]
[Source "ChessBase"]
[SourceQuality "1"]
[TimeControl "40/6000+30:3000+30"]

1. e4 {[%emt 0:00:22]} c5 {[%emt 0:00:06]} 2. Nf3 {[%emt 0:00:48]} d6 {[%emt 0:00:08]} 3. d4 {[%emt 0:00:13]} cxd4 {[%emt 0:00:07]} 4. Nxd4 {[%emt 0:00:05]} Nf6 {[%emt 0:00:11]} 5. Nc3 {[%emt 0:00:05]} a6 {[%emt 0:00:02]} 6. Bg5 {[%emt 0:00:39]} e6 {[%emt 0:00:29]} 7. Qe2 {[%emt 0:00:53]} Be7 {[%emt 0:04:43]} 8. h4 {[%emt 0:00:20]} Nbd7 {[%emt 0:03:00]} 9. O-O-O {[%emt 0:00:28]} Qc7 {[%emt 0:05:02]} 10. g4 {[%emt 0:00:51]} b5 {[%emt 0:05:39]} 11. a3 {[%emt 0:03:23]} Bb7 {[%emt 0:02:06]} 12. f4 {[%emt 0:03:16]} Rc8 {[%emt 0:21:23]} 13. Bg2 {[%emt 0:10:07]} Qc4 {[%emt 0:07:16]} 14. Bf3 {[%emt 0:32:35]} Qxe2 {[%emt 0:04:12]} 15. Ndxe2 {[%emt 0:00:11]} Nc5 {[%emt 0:08:46]} 16. Bxf6 {[%emt 0:12:17]} gxf6 {[%emt 0:00:07]} 17. f5 {[%emt 0:01:58]} Nd7 {[%emt 0:05:48]} 18. Bg2 {[%emt 0:05:27]} Rg8 {[%emt 0:07:35]} 19. fxe6 {[%emt 0:08:33]} fxe6 {[%emt 0:00:37]} 20. Nd4 {[%emt 0:00:21]} Nf8 {[%emt 0:11:42]} 21. Bh3 {[%emt 0:00:27]} Rxc3 {[%emt 0:01:02]} 22. bxc3 {[%emt 0:00:25]} Bxe4 {[%emt 0:00:05]} 23. Rhe1 {[%emt 0:02:34]} d5 {[%emt 0:01:07]} 24. Kb2 {[%emt 0:00:05]} Kf7 {[%emt 0:01:38]} 25. Rxe4 {[%emt 0:02:23]} dxe4 {[%emt 0:00:09]} 26. Re1 {[%emt 0:00:05]} h5 {[%emt 0:04:05]} 27. Rxe4 {[%emt 0:00:14]} hxg4 {[%emt 0:00:07]} 28. Bxg4 {[%emt 0:00:03]} f5 {[%emt 0:01:06]} 29. Bxf5 {[%emt 0:00:07]} exf5 {[%emt 0:00:15]} 30. Nxf5 {[%emt 0:00:04]} Bxa3+ {[%emt 0:05:17]} 31. Kxa3 {[%emt 0:00:02]} Rg2 {[%emt 0:00:17]} 32. Nd4 {[%emt 0:09:44]} Rh2 {[%emt 0:01:23]} 33. Kb4 {[%emt 0:00:45]} Rh3 {[%emt 0:04:24]} 34. Ka5 {[%emt 0:05:14]} Rxc3 {[%emt 0:01:13]} 35. Kxa6 {[%emt 0:00:02]} Rh3 {[%emt 0:02:12]} 36. Nxb5 {[%emt 0:06:17]} Ng6 {[%emt 0:01:14]} 37. c4 {[%emt 0:00:03]} Nxh4 {[%emt 0:02:35]} 38. c5 {[%emt 0:00:14]} Nf5 {[%emt 0:00:57]} 39. c6 {[%emt 0:04:20]} Ne7 {[%emt 0:00:53]} 40. c7 {[%emt 0:00:37]} Rh8 {[%emt 0:00:07]} 41. Nd6+ {[%emt 0:51:18]} Kf6 {[%emt 0:02:03]} 42. Re1 {[%emt 0:00:00]} Rg8 {[%emt 0:00:35]} 43. Kb7 {[%emt 0:00:00]} Rh8 {[%emt 0:00:40]} 44. Ne4+ {[%emt 0:00:00]} Ke5 {[%emt 0:10:06]} 45. Ng5+ {[%emt 0:00:00]} Kf6 {[%emt 0:00:21]} 46. Re6+ {[%emt 0:00:00]} 1-0

[Event "Caplin Hastings Masters 2023-24"]
[Site "Hastings"]
[Date "2023.12.28"]
[Round "1.5"]
[White "Hng, Mei-Xian Eunice"]
[Black "Jacobson, Brandon"]
[Result "0-1"]
[ECO "B21"]
[WhiteElo "2014"]
[BlackElo "2538"]
[Annotator "ChessBase"]
[PlyCount "68"]
[EventDate "2023.12.18"]
[EventType "swiss"]
[EventCountry "ENG"]
[SourceTitle "playchess.com"]
[Source "ChessBase"]
[SourceQuality "1"]
[TimeControl "40/6000+30:3000+30"]

1. e4 {[%emt 0:00:05]} c5 {[%emt 0:04:20]} 2. d4 {[%emt 0:00:30]} cxd4 {[%emt 0:01:09]} 3. c3 {[%emt 0:01:03]} dxc3 {[%emt 0:00:54]} 4. Nxc3 {[%emt 0:00:50]} Nc6 {[%emt 0:00:12]} 5. Bc4 {[%emt 0:00:55]} d6 {[%emt 0:00:32]} 6. Nf3 {[%emt 0:00:40]} a6 {[%emt 0:00:23]} 7. O-O {[%emt 0:02:12]} Nf6 {[%emt 0:03:05]} 8. Bf4 {[%emt 0:01:12]} Bg4 {[%emt 0:01:02]} 9. h3 {[%emt 0:01:58]} Bxf3 {[%emt 0:00:29]} 10. Qxf3 {[%emt 0:01:11]} e6 {[%emt 0:00:08]} 11. Rfd1 {[%emt 0:02:22]} Qa5 {[%emt 0:00:42]} 12. Be2 {[%emt 0:11:02]} Qb6 {[%emt 0:20:27]} 13. Qd3 {[%emt 0:12:32]} Be7 {[%emt 0:12:23]} 14. a3 {[%emt 0:05:19]} O-O {[%emt 0:00:26]} 15. b4 {[%emt 0:03:13]} Rac8 {[%emt 0:07:06]} 16. Rac1 {[%emt 0:04:08]} Ne5 {[%emt 0:05:05]} 17. Qg3 {[%emt 0:05:56]} Ng6 {[%emt 0:16:22]} 18. Be3 {[%emt 0:00:04]} Qd8 {[%emt 0:03:54]} 19. Bc5 {[%emt 0:03:57]} Rc6 {[%emt 0:13:31]} 20. e5 {[%emt 0:02:00]} Nxe5 {[%emt 0:02:02]} 21. Qxe5 {[%emt 0:29:07]} dxe5 {[%emt 0:00:00]} 22. Rxd8 {[%emt 0:00:07]} Bxd8 {[%emt 0:00:00]} 23. Bxf8 {[%emt 0:00:42]} Kxf8 {[%emt 0:02:15]} 24. Na2 {[%emt 0:03:19]} Rxc1+ {[%emt 0:00:03]} 25. Nxc1 {[%emt 0:02:07]} Bb6 {[%emt 0:00:00]} 26. Nb3 e4 {[%emt 0:12:05]} 27. a4 {[%emt 0:00:17]} Nd5 {[%emt 0:09:48]} 28. a5 {[%emt 0:00:03]} Ba7 {[%emt 0:01:00]} 29. b5 {[%emt 0:03:08]} axb5 {[%emt 0:00:00]} 30. Bxb5 {[%emt 0:12:35]} Ke7 {[%emt 0:00:00]} 31. Kf1 {[%emt 0:01:24]} Nc3 {[%emt 0:00:00]} 32. Bc4 {[%emt 0:00:52]} Nd1 {[%emt 0:00:00]} 33. a6 {[%emt 0:01:14]} bxa6 {[%emt 0:00:00]} 34. Bxa6 {[%emt 0:00:08]} Nxf2 {[%emt 0:00:00]} 0-1

[Event "Caplin Hastings Masters 2023-24"]
[Site "Hastings"]
[Date "2023.12.28"]
[Round "1.6"]
[White "Edouard, Romain"]
[Black "Thompson, Ian D"]
[Result "1-0"]
[ECO "D43"]
[WhiteElo "2527"]
[BlackElo "2011"]
[Annotator "ChessBase"]
[PlyCount "51"]
[EventDate "2023.12.18"]
[EventType "swiss"]
[EventCountry "ENG"]
[SourceTitle "playchess.com"]
[Source "ChessBase"]
[SourceQuality "1"]
[TimeControl "40/6000+30:3000+30"]

1. Nf3 {[%emt 0:00:03]} d5 {[%emt 0:00:16]} 2. c4 {[%emt 0:00:09]} e6 {[%emt 0:01:15]} 3. d4 {[%emt 0:00:08]} Nf6 {[%emt 0:00:26]} 4. Nc3 {[%emt 0:00:07]} c6 {[%emt 0:00:19]} 5. Bg5 {[%emt 0:00:07]} h6 {[%emt 0:00:31]} 6. Bh4 {[%emt 0:00:28]} dxc4 {[%emt 0:01:10]} 7. e4 {[%emt 0:00:04]} g5 {[%emt 0:00:19]} 8. Bg3 {[%emt 0:00:04]} b5 {[%emt 0:00:19]} 9. Be2 {[%emt 0:01:11]} Bb7 {[%emt 0:00:55]} 10. Qc2 {[%emt 0:00:24]} Nbd7 {[%emt 0:03:19]} 11. Nd2 {[%emt 0:00:15]} a6 {[%emt 0:20:45]} 12. Rd1 {[%emt 0:01:34]} Qa5 {[%emt 0:03:35]} 13. O-O {[%emt 0:02:16]} c5 {[%emt 0:06:39]} 14. d5 {[%emt 0:00:34]} e5 {[%emt 0:01:35]} 15. Rfe1 {[%emt 0:00:57]} h5 {[%emt 0:14:08]} 16. h4 {[%emt 0:01:11]} g4 {[%emt 0:02:40]} 17. a4 {[%emt 0:04:43]} Bd6 {[%emt 0:08:59]} 18. Ra1 {[%emt 0:01:39]} Qb6 {[%emt 0:05:12]} 19. axb5 {[%emt 0:00:09]} axb5 {[%emt 0:00:07]} 20. Bxc4 {[%emt 0:00:04]} Rxa1 {[%emt 0:01:31]} 21. Rxa1 {[%emt 0:00:06]} Ba6 {[%emt 0:01:01]} 22. Qb3 {[%emt 0:05:32]} O-O {[%emt 0:02:59]} 23. Bxb5 {[%emt 0:00:11]} Bxb5 {[%emt 0:01:16]} 24. Qxb5 {[%emt 0:00:03]} Qc7 {[%emt 0:00:52]} 25. Nc4 {[%emt 0:00:20]} Rc8 {[%emt 0:06:59]} 26. Qa6 {[%emt 0:05:23]} 1-0

[Event "Caplin Hastings Masters 2023-24"]
[Site "Hastings"]
[Date "2023.12.28"]
[Round "1.7"]
[White "ONUOHA, Obioma"]
[Black "Laurent-Paoli, Pierre"]
[Result "0-1"]
[ECO "B33"]
[WhiteElo "1995"]
[BlackElo "2524"]
[Annotator "ChessBase"]
[PlyCount "80"]
[EventDate "2023.12.18"]
[EventType "swiss"]
[EventCountry "ENG"]
[SourceTitle "playchess.com"]
[Source "ChessBase"]
[SourceQuality "1"]
[TimeControl "40/6000+30:3000+30"]

1. e4 {[%emt 0:00:07]} c5 {[%emt 0:01:22]} 2. Nf3 {[%emt 0:00:09]} Nc6 {[%emt 0:00:12]} 3. d4 {[%emt 0:00:13]} cxd4 {[%emt 0:00:07]} 4. Nxd4 {[%emt 0:00:06]} Nf6 {[%emt 0:01:01]} 5. Nc3 {[%emt 0:06:48]} e5 {[%emt 0:00:42]} 6. Nxc6 {[%emt 0:00:32]} bxc6 {[%emt 0:00:46]} 7. Bc4 {[%emt 0:00:25]} Bb4 {[%emt 0:04:20]} 8. O-O {[%emt 0:05:45]} O-O {[%emt 0:06:40]} 9. Bg5 {[%emt 0:00:57]} h6 {[%emt 0:00:55]} 10. Bxf6 {[%emt 0:09:11]} Qxf6 {[%emt 0:00:08]} 11. Qd3 {[%emt 0:00:13]} a5 {[%emt 0:13:49]} 12. Rad1 {[%emt 0:00:29]} a4 {[%emt 0:12:30]} 13. a3 {[%emt 0:03:03]} Bc5 {[%emt 0:00:58]} 14. Qg3 {[%emt 0:04:09]} d6 {[%emt 0:02:11]} 15. Rd3 {[%emt 0:00:56]} h5 {[%emt 0:05:35]} 16. h4 {[%emt 0:02:12]} Bg4 {[%emt 0:01:29]} 17. Kh1 {[%emt 0:01:28]} Rfb8 {[%emt 0:03:34]} 18. b4 {[%emt 0:06:52]} axb3 {[%emt 0:00:33]} 19. Bxb3 {[%emt 0:01:00]} Rxa3 {[%emt 0:03:53]} 20. f3 {[%emt 0:01:52]} Bc8 {[%emt 0:07:20]} 21. Rb1 {[%emt 0:10:09]} Rba8 {[%emt 0:02:20]} 22. Bc4 {[%emt 0:02:13]} g6 {[%emt 0:08:06]} 23. Ne2 {[%emt 0:08:30]} R3a4 {[%emt 0:02:05]} 24. Bb3 {[%emt 0:00:19]} Ra1 {[%emt 0:00:35]} 25. Rdd1 {[%emt 0:01:38]} Rxb1 {[%emt 0:00:20]} 26. Rxb1 {[%emt 0:00:12]} Kg7 {[%emt 0:00:23]} 27. Ng1 {[%emt 0:02:38]} Be6 {[%emt 0:05:03]} 28. Rf1 {[%emt 0:04:18]} Bxb3 {[%emt 0:02:41]} 29. cxb3 {[%emt 0:00:11]} Ra3 {[%emt 0:01:11]} 30. Rb1 {[%emt 0:00:37]} Qe6 {[%emt 0:02:38]} 31. f4 {[%emt 0:04:35]} exf4 {[%emt 0:01:48]} 32. Qxf4 {[%emt 0:01:29]} Rxb3 {[%emt 0:00:29]} 33. Rxb3 {[%emt 0:09:03]} Qxb3 {[%emt 0:00:06]} 34. Nf3 {[%emt 0:00:17]} Qe3 {[%emt 0:01:48]} 35. Qxe3 {[%emt 0:05:53]} Bxe3 {[%emt 0:00:05]} 36. g3 {[%emt 0:00:52]} f5 {[%emt 0:02:57]} 37. exf5 {[%emt 0:00:45]} gxf5 {[%emt 0:00:05]} 38. Kg2 {[%emt 0:00:08]} Kf6 {[%emt 0:00:21]} 39. Kf1 {[%emt 0:00:07]} c5 {[%emt 0:00:35]} 40. Ke2 {[%emt 0:00:09]} Bd4 {[%emt 0:01:04]} 0-1

[Event "Caplin Hastings Masters 2023-24"]
[Site "Hastings"]
[Date "2023.12.28"]
[Round "1.8"]
[White "Mikhalevski, Victor"]
[Black "Steiners, Emils"]
[Result "1-0"]
[ECO "A13"]
[WhiteElo "2524"]
[BlackElo "1993"]
[Annotator "ChessBase"]
[PlyCount "103"]
[EventDate "2023.12.18"]
[EventType "swiss"]
[EventCountry "ENG"]
[SourceTitle "playchess.com"]
[Source "ChessBase"]
[SourceQuality "1"]
[TimeControl "40/6000+30:3000+30"]

1. c4 {[%emt 0:00:09]} e6 {[%emt 0:00:09]} 2. g3 {[%emt 0:00:14]} Nf6 {[%emt 0:00:23]} 3. Bg2 {[%emt 0:00:08]} d5 {[%emt 0:00:20]} 4. Nf3 {[%emt 0:00:16]} d4 {[%emt 0:03:51]} 5. d3 {[%emt 0:00:53]} Bb4+ {[%emt 0:00:29]} 6. Nbd2 {[%emt 0:01:50]} a5 {[%emt 0:03:39]} 7. a3 {[%emt 0:06:44]} Be7 {[%emt 0:01:45]} 8. Nb3 {[%emt 0:02:55]} c5 {[%emt 0:04:36]} 9. e4 {[%emt 0:00:34]} a4 {[%emt 0:12:30]} 10. Nbd2 {[%emt 0:00:17]} Nc6 {[%emt 0:01:41]} 11. Nh4 {[%emt 0:07:56]} Nd7 {[%emt 0:04:43]} 12. O-O {[%emt 0:00:31]} Bxh4 {[%emt 0:03:54]} 13. gxh4 {[%emt 0:00:05]} Qxh4 {[%emt 0:09:14]} 14. f4 {[%emt 0:01:01]} e5 {[%emt 0:08:12]} 15. Nf3 {[%emt 0:00:55]} Qe7 {[%emt 0:04:11]} 16. Qe1 {[%emt 0:01:23]} f6 {[%emt 0:06:23]} 17. Qg3 {[%emt 0:02:50]} O-O {[%emt 0:07:42]} 18. Nh4 {[%emt 0:06:53]} exf4 {[%emt 0:01:45]} 19. Bxf4 {[%emt 0:00:10]} Nde5 {[%emt 0:08:12]} 20. Nf5 {[%emt 0:01:17]} Bxf5 {[%emt 0:05:02]} 21. exf5 {[%emt 0:00:51]} Rad8 {[%emt 0:02:53]} 22. Bd5+ {[%emt 0:03:13]} Rxd5 {[%emt 0:03:37]} 23. cxd5 {[%emt 0:00:07]} Nb8 {[%emt 0:00:34]} 24. Bxe5 {[%emt 0:02:38]} fxe5 {[%emt 0:01:33]} 25. f6 {[%emt 0:03:15]} Rxf6 {[%emt 0:01:06]} 26. Rxf6 {[%emt 0:00:59]} Qxf6 {[%emt 0:00:10]} 27. Qh3 {[%emt 0:03:40]} Qg6+ {[%emt 0:03:00]} 28. Kh1 {[%emt 0:00:10]} Qe8 {[%emt 0:00:37]} 29. Rf1 {[%emt 0:13:32]} Nd7 {[%emt 0:02:08]} 30. Qe6+ {[%emt 0:00:36]} Qxe6 {[%emt 0:00:10]} 31. dxe6 {[%emt 0:00:02]} Nf6 {[%emt 0:01:02]} 32. Rf5 {[%emt 0:00:05]} c4 {[%emt 0:09:35]} 33. e7 {[%emt 0:08:25]} Kf7 {[%emt 0:00:46]} 34. Rxe5 {[%emt 0:00:06]} cxd3 {[%emt 0:01:02]} 35. e8=Q+ {[%emt 0:00:16]} Nxe8 {[%emt 0:00:06]} 36. Re4 {[%emt 0:00:16]} Nd6 {[%emt 0:00:57]} 37. Rxd4 {[%emt 0:00:08]} Ke6 {[%emt 0:00:16]} 38. Rxd3 {[%emt 0:00:12]} Nc4 {[%emt 0:00:16]} 39. b3 {[%emt 0:01:05]} axb3 {[%emt 0:00:58]} 40. Rxb3 {[%emt 0:00:05]} b6 {[%emt 0:00:28]} 41. a4 {[%emt 0:50:35]} Kd6 {[%emt 0:06:16]} 42. Rh3 {[%emt 0:00:00]} g6 {[%emt 0:15:58]} 43. Rxh7 {[%emt 0:00:00]} Ne5 {[%emt 0:00:48]} 44. Kg2 {[%emt 0:02:22]} Kc5 {[%emt 0:04:33]} 45. Kg3 {[%emt 0:00:00]} Kb4 {[%emt 0:02:46]} 46. Re7 {[%emt 0:00:00]} Nd3 {[%emt 0:00:49]} 47. Re6 {[%emt 0:00:00]} Kxa4 {[%emt 0:01:01]} 48. Rxb6 {[%emt 0:00:00]} g5 {[%emt 0:00:39]} 49. Kg4 {[%emt 0:00:00]} Ne5+ {[%emt 0:00:27]} 50. Kxg5 {[%emt 0:00:00]} Nf3+ {[%emt 0:00:18]} 51. Kf4 {[%emt 0:00:00]} Nxh2 {[%emt 0:00:10]} 52. Rb1 {[%emt 0:00:00]} 1-0